[Event "VII Famalicao Open 2019"]
[Site "Famalicao"]
[Date "2019.08.03"]
[Round "8.13"]
[White "Monteiro, Jose Macedo"]
[Black "Fidalgo, Daniel"]
[Result "1/2-1/2"]
[ECO "C01"]
[WhiteElo "1851"]
[BlackElo "2087"]
[Annotator "NA"]
[PlyCount "139"]
[EventDate "2019.07.28"]
[EventType "swiss"]
[EventCountry "POR"]
[SourceTitle "playchess.com"]
[Source "ChessBase"]
[SourceQuality "1"]
[TimeControl "5400+30"]

1. e4 {[%emt 0:00:00]} e6 {[%emt 0:00:00]} 2. d4 {[%emt 0:00:00]} d5 {[%emt 0:00:00]} 3. exd5 {[%emt 0:00:03]} exd5 {[%emt 0:00:06]} 4. Bd3 {[%emt 0:00:07]} Bd6 {[%emt 0:00:47]} 5. Qf3 {[%emt 0:00:54]} h6 {[%emt 0:01:09]} (5... c6 6. Ne2 Qf6 7. Bf4 Bxf4 8. Qxf4 Qxf4 9. Nxf4 Ne7 10. Kd2 Bf5 11. Re1 Bxd3 12. Nxd3 Nd7 13. Nc3 f6 14. Na4 Kf7 15. Nac5 Nxc5 16. Nxc5 {½-½ (23) Bortnyk,O (2566)-Bernadskiy,V (2514) Kishinev 2017}) 6. Nc3 {[%emt 0:00:52] C01: French: Exchange Variation} c6 {[%emt 0:00:41]} 7. Nge2 {[%emt 0:00:11]} Nf6 {[%emt 0:00:25]} 8. h3 {[%emt 0:00:26]} Nbd7 $146 {[%emt 0:03:21]} ({Predecessor:} 8... Be6 9. Bf4 Qc7 10. O-O-O Nbd7 11. Bxd6 Qxd6 12. Nf4 O-O-O 13. Nxe6 fxe6 {1-0 (35) Flores Bartoli,A (1762)-Khumalo,K (1552) Bloemfontein 2016}) 9. O-O {[%emt 0:03:28]} Nf8 {[%emt 0:01:57]} 10. Re1 {[%emt 0:02:27]} Ne6 {[%emt 0:00:35]} 11. Ng3 {[%emt 0:01:39]} O-O {[%emt 0:04:22]} 12. Nf5 {[%emt 0:01:13]} Ng5 {[%emt 0:05:32]} 13. Bxg5 {[%emt 0:02:21]} hxg5 {[%emt 0:00:09]} 14. Ne2 {[%emt 0:10:43]} g6 {[%emt 0:05:39]} (14... Bc7 $15) 15. Nxd6 {[%emt 0:02:52]} Qxd6 {[%emt 0:00:09]} 16. Qg3 {[%emt 0:00:17]} Qxg3 {[%emt 0:01:38]} 17. Nxg3 {[%emt 0:00:08]} Re8 {[%emt 0:06:37]} 18. Rxe8+ {[%emt 0:01:57]} Nxe8 {[%emt 0:00:08]} 19. Re1 {[%emt 0:00:08]} Kf8 {[%emt 0:00:08]} 20. Re5 {[%emt 0:04:08]} f6 {[%emt 0:08:27]} 21. Re1 {[%emt 0:00:17]} f5 {[%emt 0:00:18]} 22. Nf1 {[%emt 0:13:49]} Nd6 {[%emt 0:04:46]} 23. Nd2 {[%emt 0:00:45]} Bd7 {[%emt 0:03:42]} 24. Nf3 {[%emt 0:00:23]} Nf7 $1 {[%emt 0:00:10]} 25. h4 {[%emt 0:06:58]} gxh4 {[%emt 0:01:29]} 26. Nxh4 {[%emt 0:00:03]} Kg7 {[%emt 0:00:11]} 27. f4 {[%emt 0:06:48]} Kf6 {[%emt 0:07:53]} 28. Nf3 {[%emt 0:00:57]} Re8 {[%emt 0:03:13]} 29. Ne5 {[%emt 0:02:27]} Re7 {[%emt 0:03:45]} 30. Kf2 {[%emt 0:00:14]} Nd8 {[%emt 0:01:08]} 31. c3 {[%emt 0:01:21]} Ne6 {[%emt 0:01:43]} 32. g3 {[%emt 0:02:05]} Rh7 {[%emt 0:00:20]} 33. Kg2 {[%emt 0:01:56]} Be8 {[%emt 0:00:57]} 34. Nf3 {[%emt 0:00:22]} Rh8 {[%emt 0:00:55]} 35. Ng5 {[%emt 0:02:44]} Bd7 {[%emt 0:06:50]} 36. Nxe6 {[%emt 0:00:40]} Bxe6 {[%emt 0:00:02]} 37. Rh1 {[%emt 0:00:10]} Re8 {[%emt 0:01:00]} 38. Rh7 {[%emt 0:00:16]} Bf7 {[%emt 0:00:17]} 39. Kf2 {[%emt 0:00:15]} b6 {[%emt 0:01:12]} 40. Rh1 {[%emt 0:03:12]} c5 {[%emt 0:01:55]} 41. Re1 {[%emt 0:00:39]} Rc8 {[%emt 0:00:33]} 42. Re2 {[%emt 0:01:04]} c4 {[%emt 0:01:20]} 43. Bc2 {[%emt 0:00:11]} b5 {[%emt 0:00:11]} 44. a3 {[%emt 0:00:24]} a5 {[%emt 0:00:25]} 45. Re1 {[%emt 0:01:02]} Rb8 {[%emt 0:02:17]} 46. Ra1 {[%emt 0:00:48]} b4 {[%emt 0:05:15]} 47. axb4 {[%emt 0:00:07]} axb4 {[%emt 0:00:02]} 48. Ra6+ {[%emt 0:01:20]} Kg7 {[%emt 0:00:15]} 49. Ke3 {[%emt 0:05:10]} b3 {[%emt 0:06:40]} 50. Bd1 {[%emt 0:01:03]} Rh8 {[%emt 0:00:09]} 51. Ra1 $11 {[%emt 0:06:12]} Rh3 {[%emt 0:02:51]} 52. Kf3 {[%emt 0:06:10]} Rh2 {[%emt 0:00:08]} 53. Be2 {[%emt 0:00:28]} g5 {[%emt 0:00:15]} 54. Ke3 {[%emt 0:00:30]} gxf4+ {[%emt 0:00:30]} 55. gxf4 {[%emt 0:00:00]} Bh5 {[%emt 0:02:18]} 56. Bxh5 {[%emt 0:06:02]} Rxh5 {[%emt 0:00:03]} 57. Rg1+ {[%emt 0:02:22]} Kh6 {[%emt 0:01:06]} 58. Kf3 {[%emt 0:00:27]} Rh2 {[%emt 0:02:10]} 59. Rg2 {[%emt 0:00:09]} Rh1 {[%emt 0:00:19]} 60. Kg3 {[%emt 0:00:34]} Rc1 {[%emt 0:00:26]} 61. Rh2+ {[%emt 0:03:09]} Kg6 {[%emt 0:00:11]} 62. Re2 {[%emt 0:00:30]} Rc2 {[%emt 0:00:32]} 63. Re6+ {[%emt 0:00:09]} Kf7 {[%emt 0:00:08]} 64. Re5 {[%emt 0:00:00]} Rxb2 {[%emt 0:00:30]} 65. Rxd5 {[%emt 0:00:14]} Rc2 {[%emt 0:00:08]} 66. Rxf5+ {[%emt 0:00:30]} Kg6 {[%emt 0:00:30]} 67. Rc5 {[%emt 0:00:25]} Rxc3+ {[%emt 0:01:37] Rb5 Rd3+} 68. Kg4 {[%emt 0:00:42]} Kf7 {[%emt 0:00:14] Rb6 Rxd4} 69. Kf5 {[%emt 0:00:00]} Ke8 {[%emt 0:00:03] Rb7 Rd8} 70. Ke5 {[%emt 0:00:00] Rc8 f5 Rc6 Kd5 c3 Rxb3 c2} 1/2-1/2

[Event "VII Famalicao Open 2019"]
[Site "Famalicao"]
[Date "2019.08.02"]
[Round "8.14"]
[White "Gama, Joao Paulo Antunes D"]
[Black "Fernandes, Joao Pedro"]
[Result "0-1"]
[ECO "B30"]
[WhiteElo "1819"]
[BlackElo "2080"]
[Annotator "NA RC"]
[PlyCount "90"]
[EventDate "2019.07.28"]
[EventType "swiss"]
[EventCountry "POR"]
[SourceTitle "playchess.com"]
[Source "ChessBase"]
[SourceQuality "1"]
[TimeControl "5400+30"]

{[%evp 30,81,-34,-31,-6,0,4,-39,-20,-72,-15,-22,-30,-47,1,0,0,-19,12,-40,-27,-16,-17,-17,-16,-11,32767,32767,-12,32767,-8,-17,-13,-10,0,-18,-16,32767,32767,32767,32767,32767,32767,32767,32767,32767,-89,-111,-8,32767,-227,32767,-267,-526]} 1. e4 {[%emt 0:00:00]} c5 {[%emt 0:00:00]} 2. Nf3 {[%emt 0:00:00]} Nc6 {[%emt 0:00:00]} 3. Bb5 {[%emt 0:00:00]} e6 {[%emt 0:00:00]} 4. O-O {[%emt 0:00:00]} Nge7 {[%emt 0:00:00]} 5. Re1 {[%emt 0:00:26]} a6 {[%emt 0:00:09]} 6. Bf1 {[%emt 0:00:13]} d5 {[%emt 0:00:29]} 7. exd5 {[%emt 0:01:07]} Qxd5 {[%emt 0:00:13]} 8. Nc3 {[%emt 0:02:17]} Qd8 {[%emt 0:00:28] B30: Sicilian: 2...Nc6 3 Bb5, lines without ...g6} 9. d3 {[%emt 0:01:09]} Nf5 {[%emt 0:01:22]} 10. Bf4 {[%emt 0:02:24]} Be7 {[%emt 0:03:17]} 11. h3 {[%emt 0:06:02]} O-O {[%emt 0:01:07]} 12. a4 {[%emt 0:00:12]} f6 {[%emt 0:04:02]} 13. Bh2 {[%emt 0:00:21]} e5 {[%emt 0:01:06]} 14. Ne4 {[%emt 0:06:16] [#]} Be6 $146 {[%emt 0:02:43]} ({Predecessor:} 14... Nh6 15. c3 Nf7 16. Qc2 {0-1 (38) Peiter,A (2055)-Nijboer,F (2555) Leiden 2011}) 15. c3 {[%emt 0:00:21]} Rb8 {[%emt 0:17:59]} 16. Qc2 {[%emt 0:06:43]} b5 {[%emt 0:01:23]} 17. axb5 {[%emt 0:00:22]} axb5 {[%emt 0:00:06]} 18. Ra6 {[%emt 0:00:20]} Rb6 {[%emt 0:00:51]} 19. Rea1 {[%emt 0:00:54] [#]} Rxa6 {[%emt 0:07:12]} ({Black should play} 19... Nfd4 $1 $17 {[%cal Rd4c2][%mdl 512]} 20. Nxd4 (20. cxd4 Nb4 $15) 20... cxd4) 20. Rxa6 {[%emt 0:00:12]} Qc8 {[%emt 0:00:18]} 21. Ra1 {[%emt 0:01:53]} Qb7 {[%emt 0:02:40]} 22. g4 {[%emt 0:08:34]} Nh6 {[%emt 0:00:20]} 23. Bg2 {[%emt 0:00:13]} Qb6 {[%emt 0:06:30]} 24. Ned2 {[%emt 0:02:57]} ({Better is} 24. Qe2 $11) 24... Nf7 {[%emt 0:05:45]} 25. Nf1 {[%emt 0:10:39]} Rd8 {[%emt 0:03:47]} 26. Ne3 {[%emt 0:02:32]} c4 {[%emt 0:06:49]} 27. dxc4 {[%emt 0:07:40]} bxc4 {[%emt 0:00:07]} 28. Nd2 {[%emt 0:00:15]} Na5 {[%emt 0:04:52]} 29. Rd1 {[%emt 0:05:45]} Bc5 {[%emt 0:01:49]} 30. Ndf1 {[%emt 0:02:19]} Rxd1 {[%emt 0:03:37]} 31. Nxd1 {[%emt 0:00:12]} Bd7 {[%emt 0:04:12]} 32. Nfe3 {[%emt 0:03:51]} Bc6 {[%emt 0:02:29]} 33. Nd5 {[%emt 0:07:01]} Qb7 {[%emt 0:01:01]} 34. N1e3 {[%emt 0:00:15]} Bxe3 {[%emt 0:02:25]} 35. Nxe3 {[%emt 0:00:13]} Bxg2 {[%emt 0:00:12]} 36. Nxg2 {[%emt 0:00:15]} Ng5 {[%emt 0:00:36]} 37. Qa4 {[%emt 0:03:30]} Nf3+ {[%emt 0:02:03]} 38. Kh1 {[%emt 0:00:40]} h6 {[%emt 0:02:18]} (38... Qa8 $17 39. Bg3 {[#]} h5 $1 {[%mdl 512]}) 39. Qd1 {[%emt 0:05:08]} Nh4 {[%emt 0:01:25]} 40. Qf1 {[%emt 0:00:13] [#]} Nb3 $1 {[%emt 0:05:40]} 41. Bg3 $19 {[%emt 0:02:14]} (41. f4 {was forced.} Nd2 42. Qf2 Nxg2 43. Qxg2 Qxb2 44. fxe5 fxe5 45. Qd5+ Kh8 46. Bxe5 Qa1+ 47. Kg2 Qf1+ 48. Kh2) 41... Nd2 {[%emt 0:00:52]} 42. Qg1 {[%emt 0:00:25]} Nhf3 {[%emt 0:01:51]} 43. Qc1 {[%emt 0:00:34]} h5 {[%emt 0:00:37]} 44. gxh5 {[%emt 0:04:03]} Qd7 {[%emt 0:00:34]} 45. Bh2 {[%emt 0:00:50]} Qxh3 {[%emt 0:00:10]} 0-1

[Event "VII Famalicao Open 2019"]
[Site "Famalicao"]
[Date "2019.08.03"]
[Round "9.1"]
[White "Galego, Luis"]
[Black "Grigoryan, Karen H."]
[Result "0-1"]
[ECO "B50"]
[WhiteElo "2513"]
[BlackElo "2549"]
[Annotator "ChessBase"]
[PlyCount "102"]
[EventDate "2019.07.28"]
[EventType "swiss"]
[EventCountry "POR"]
[SourceTitle "playchess.com"]
[Source "ChessBase"]
[SourceQuality "1"]
[TimeControl "5400+30"]

1. e4 {[%emt 0:00:00]} c5 {[%emt 0:02:15]} 2. Nf3 {[%emt 0:00:00]} d6 {[%emt 0:00:56]} 3. c3 {[%emt 0:00:48]} Nf6 {[%emt 0:00:13]} 4. Bb5+ {[%emt 0:00:13]} Bd7 {[%emt 0:01:19]} 5. Bxd7+ {[%emt 0:00:44]} Qxd7 {[%emt 0:00:30]} 6. d3 {[%emt 0:00:49]} e6 {[%emt 0:00:25]} 7. O-O {[%emt 0:02:19]} Be7 {[%emt 0:00:24]} 8. Bg5 {[%emt 0:03:28]} h6 {[%emt 0:01:26]} 9. Bxf6 {[%emt 0:02:11]} Bxf6 {[%emt 0:00:07]} 10. d4 {[%emt 0:00:49]} cxd4 {[%emt 0:00:29]} 11. cxd4 {[%emt 0:00:15]} O-O {[%emt 0:01:17]} 12. Nc3 {[%emt 0:00:26]} Nc6 {[%emt 0:01:31]} 13. Rc1 {[%emt 0:02:12]} d5 {[%emt 0:01:43]} 14. exd5 {[%emt 0:06:24]} exd5 {[%emt 0:00:12]} 15. Qd3 {[%emt 0:00:43]} Rfe8 {[%emt 0:04:56]} 16. Rfd1 {[%emt 0:01:50]} Re6 {[%emt 0:02:27]} 17. g3 {[%emt 0:05:52]} Bg5 {[%emt 0:05:23]} 18. Rb1 {[%emt 0:04:02]} Nb4 {[%emt 0:07:08]} 19. Qb5 {[%emt 0:04:21]} Qxb5 {[%emt 0:00:29]} 20. Nxb5 {[%emt 0:00:02]} Rd8 {[%emt 0:06:53]} 21. Nc3 {[%emt 0:02:15]} Bf6 {[%emt 0:01:01]} 22. Rbc1 {[%emt 0:01:08]} g5 {[%emt 0:02:24]} 23. h3 {[%emt 0:00:35]} h5 {[%emt 0:03:42]} 24. Kg2 {[%emt 0:05:24]} g4 {[%emt 0:02:47]} 25. hxg4 {[%emt 0:00:37]} hxg4 {[%emt 0:00:05]} 26. Ne5 {[%emt 0:00:58]} Bxe5 {[%emt 0:02:29]} 27. dxe5 {[%emt 0:00:02]} d4 {[%emt 0:01:43]} 28. Ne4 {[%emt 0:01:55]} Rxe5 {[%emt 0:00:39]} 29. Nf6+ {[%emt 0:00:04]} Kg7 {[%emt 0:00:07]} 30. Nxg4 {[%emt 0:00:04]} Rg5 {[%emt 0:10:57]} 31. Nh2 {[%emt 0:00:15]} Nxa2 {[%emt 0:00:39]} 32. Ra1 {[%emt 0:01:02]} Ra5 {[%emt 0:04:52]} 33. Nf3 {[%emt 0:03:29]} d3 {[%emt 0:00:54]} 34. Rd2 {[%emt 0:16:10]} b6 {[%emt 0:00:52]} 35. b3 {[%emt 0:07:49]} Nb4 {[%emt 0:03:17]} 36. Rxa5 {[%emt 0:00:49]} bxa5 {[%emt 0:00:06]} 37. Rd1 {[%emt 0:01:42]} Kf6 {[%emt 0:04:37]} 38. Ra1 {[%emt 0:02:33]} Nc2 {[%emt 0:02:22]} 39. Rd1 {[%emt 0:01:36]} Kf5 {[%emt 0:01:47]} 40. Nd2 {[%emt 0:01:08]} Ke5 {[%emt 0:04:33]} 41. Nf3+ {[%emt 0:00:14]} Ke4 {[%emt 0:00:47]} 42. Rh1 {[%emt 0:00:59]} d2 {[%emt 0:02:33]} 43. Rd1 {[%emt 0:00:37]} Ne3+ {[%emt 0:00:21]} 44. fxe3 {[%emt 0:00:04]} Kxe3 {[%emt 0:00:04]} 45. Ng1 {[%emt 0:04:21]} Rc8 {[%emt 0:02:15]} 46. Rf1 {[%emt 0:18:56]} Rc2 {[%emt 0:01:29]} 47. Kh3 {[%emt 0:00:35]} Rc1 {[%emt 0:00:11]} 48. Rf3+ {[%emt 0:00:11]} Ke4 {[%emt 0:00:15]} 49. Rf4+ {[%emt 0:00:10]} Kd3 {[%emt 0:01:04]} 50. Rf3+ {[%emt 0:01:02]} Kc2 {[%emt 0:00:10]} 51. Ne2 {[%emt 0:00:33]} Rh1+ {[%emt 0:00:28]} 0-1

[Event "VII Famalicao Open 2019"]
[Site "Famalicao"]
[Date "2019.08.03"]
[Round "9.2"]
[White "Spraggett, Kevin"]
[Black "Pinho, Paulo"]
[Result "1-0"]
[ECO "B41"]
[WhiteElo "2511"]
[BlackElo "2200"]
[Annotator "ChessBase"]
[PlyCount "72"]
[EventDate "2019.07.28"]
[EventType "swiss"]
[EventCountry "POR"]
[SourceTitle "playchess.com"]
[Source "ChessBase"]
[SourceQuality "1"]
[TimeControl "5400+30"]

1. e4 {[%emt 0:00:00]} c5 {[%emt 0:05:13]} 2. Nf3 {[%emt 0:00:00]} e6 {[%emt 0:00:08]} 3. d4 {[%emt 0:00:00]} cxd4 {[%emt 0:00:05]} 4. Nxd4 {[%emt 0:00:00]} a6 {[%emt 0:00:06]} 5. c4 {[%emt 0:00:08]} b6 {[%emt 0:04:57]} 6. Nc3 {[%emt 0:02:59]} Bb7 {[%emt 0:00:11]} 7. Bd3 {[%emt 0:00:53]} d6 {[%emt 0:01:00]} 8. O-O {[%emt 0:01:37]} Nf6 {[%emt 0:00:31]} 9. Qe2 {[%emt 0:01:09]} Nbd7 {[%emt 0:05:39]} 10. f4 {[%emt 0:05:45]} Be7 {[%emt 0:06:13]} 11. Bd2 {[%emt 0:02:14]} Qc7 {[%emt 0:01:15]} 12. Rac1 {[%emt 0:00:48]} O-O {[%emt 0:06:14]} 13. b4 {[%emt 0:03:19]} Rfe8 {[%emt 0:05:57]} 14. Nf3 {[%emt 0:06:08]} Rac8 {[%emt 0:05:34]} 15. a3 {[%emt 0:01:50]} Bf8 {[%emt 0:00:43]} 16. Kh1 {[%emt 0:01:00]} Qb8 {[%emt 0:00:51]} 17. Rce1 {[%emt 0:00:55]} g6 {[%emt 0:06:07]} 18. e5 {[%emt 0:20:31]} Nh5 {[%emt 0:10:03]} 19. Be4 {[%emt 0:02:34]} f5 {[%emt 0:09:44]} 20. exf6 {[%emt 0:02:46]} Ndxf6 {[%emt 0:02:31]} 21. Bb1 {[%emt 0:02:31]} Bh6 {[%emt 0:06:22]} 22. Ng5 {[%emt 0:03:31]} Ng7 {[%emt 0:02:17]} 23. Ba2 {[%emt 0:00:38]} Qc7 {[%emt 0:01:23]} 24. Qd3 {[%emt 0:01:21]} Qc6 {[%emt 0:01:09]} 25. Qh3 {[%emt 0:02:24]} Bxg5 {[%emt 0:01:58]} 26. fxg5 {[%emt 0:00:02]} Nfh5 {[%emt 0:05:04]} 27. Ne4 {[%emt 0:01:16]} Nf5 {[%emt 0:01:37]} 28. Kg1 {[%emt 0:05:11]} Rf8 {[%emt 0:02:04]} 29. Qd3 {[%emt 0:08:15]} b5 {[%emt 0:02:24]} 30. cxb5 {[%emt 0:04:45]} Qb6+ {[%emt 0:00:04]} 31. Be3 {[%emt 0:00:55]} Nxe3 {[%emt 0:00:12]} 32. Bxe6+ {[%emt 0:00:16]} Kg7 {[%emt 0:00:16]} 33. Qxe3 {[%emt 0:04:49]} Rxf1+ {[%emt 0:00:28]} 34. Kxf1 {[%emt 0:00:01]} Qxb5+ {[%emt 0:01:14]} 35. Kg1 {[%emt 0:00:11]} Rc2 {[%emt 0:01:04]} 36. Rf1 {[%emt 0:01:50]} Qb6 1-0

[Event "VII Famalicao Open 2019"]
[Site "Famalicao"]
[Date "2019.08.03"]
[Round "9.3"]
[White "Vassallo Barroche, Mauricio"]
[Black "Martinez Duany, Lelys Stanley"]
[Result "0-1"]
[ECO "A48"]
[WhiteElo "2380"]
[BlackElo "2535"]
[Annotator "ChessBase"]
[PlyCount "74"]
[EventDate "2019.07.28"]
[EventType "swiss"]
[EventCountry "POR"]
[SourceTitle "playchess.com"]
[Source "ChessBase"]
[SourceQuality "1"]
[TimeControl "5400+30"]

1. d4 Nf6 2. Nf3 g6 3. Nc3 d5 4. Bf4 Bg7 5. e3 c6 6. Be2 Nbd7 7. Ne5 Qb6 8. Rb1 O-O 9. O-O Nxe5 10. Bxe5 a5 11. h3 a4 12. a3 Re8 13. Bf3 Qa5 14. Qe2 Bf5 15. g4 Be6 16. Bg2 h5 17. g5 Ne4 18. Nxe4 dxe4 19. Bxg7 Kxg7 20. h4 f6 21. f4 exf3 22. gxf6+ exf6 23. Qxf3 Qd8 24. Qf4 Bd5 25. Rf2 f5 26. Re1 Bxg2 27. Rxg2 Qf6 28. Rf1 Rf8 29. Rf3 Kh7 30. Rfg3 Rg8 31. Rf2 Rae8 32. c3 Qd8 33. Rg5 Re4 34. Qg3 Qb8 35. Rf4 Rxf4 36. exf4 Qe8 37. Kf2 Rg7 0-1

[Event "VII Famalicao Open 2019"]
[Site "Famalicao"]
[Date "2019.08.03"]
[Round "9.4"]
[White "Petkov, Vladimir"]
[Black "Campora, Daniel H."]
[Result "1/2-1/2"]
[ECO "D20"]
[WhiteElo "2497"]
[BlackElo "2420"]
[Annotator "ChessBase"]
[PlyCount "24"]
[EventDate "2019.07.28"]
[EventType "swiss"]
[EventCountry "POR"]
[SourceTitle "playchess.com"]
[Source "ChessBase"]
[SourceQuality "1"]
[TimeControl "5400+30"]

1. d4 {[%emt 0:00:30]} d5 {[%emt 0:00:00]} 2. c4 {[%emt 0:01:05]} dxc4 {[%emt 0:01:36]} 3. e4 {[%emt 0:00:13]} Nf6 {[%emt 0:00:18]} 4. e5 {[%emt 0:00:15]} Nd5 {[%emt 0:00:20]} 5. Bxc4 {[%emt 0:00:16]} Nb6 {[%emt 0:00:30]} 6. Bb3 {[%emt 0:00:22]} Nc6 {[%emt 0:00:12]} 7. Nf3 {[%emt 0:00:19]} Bg4 {[%emt 0:00:21]} 8. Ng5 {[%emt 0:00:28]} Bxd1 {[%emt 0:00:40]} 9. Bxf7+ {[%emt 0:00:13]} Kd7 {[%emt 0:00:08]} 10. Be6+ {[%emt 0:00:07]} Ke8 {[%emt 0:00:10]} 11. Bf7+ {[%emt 0:00:07]} Kd7 {[%emt 0:00:06]} 12. Be6+ {[%emt 0:00:04]} Ke8 1/2-1/2

[Event "VII Famalicao Open 2019"]
[Site "Famalicao"]
[Date "2019.08.03"]
[Round "9.5"]
[White "Cori T., Deysi"]
[Black "Fernandes, Miguel"]
[Result "1-0"]
[ECO "D45"]
[WhiteElo "2405"]
[BlackElo "2118"]
[Annotator "NA"]
[PlyCount "69"]
[EventDate "2019.07.28"]
[EventType "swiss"]
[EventCountry "POR"]
[SourceTitle "playchess.com"]
[Source "ChessBase"]
[SourceQuality "1"]
[TimeControl "5400+30"]

1. d4 {[%emt 0:04:11]} d5 {[%emt 0:00:00]} 2. c4 {[%emt 0:00:03]} c6 {[%emt 0:00:00]} 3. Nc3 {[%emt 0:00:36]} Nf6 {[%emt 0:00:00]} 4. Nf3 {[%emt 0:00:51]} e6 {[%emt 0:00:06]} 5. e3 {[%emt 0:01:33]} Nbd7 {[%emt 0:00:14]} 6. Qc2 {[%emt 0:02:35]} Bd6 {[%emt 0:00:15]} 7. Be2 {[%emt 0:03:53]} O-O {[%emt 0:00:21]} 8. b3 {[%emt 0:01:35]} e5 {[%emt 0:01:07]} 9. Bb2 {[%emt 0:02:48]} e4 {[%emt 0:02:23]} 10. Nd2 {[%emt 0:00:01]} a6 {[%emt 0:00:33]} 11. g4 {[%emt 0:01:37]} b5 {[%emt 0:08:16]} 12. cxd5 {[%emt 0:04:16]} cxd5 {[%emt 0:00:47]} 13. g5 {[%emt 0:00:17]} b4 {[%emt 0:01:56]} 14. Na4 {[%emt 0:00:11]} Ne8 {[%emt 0:00:10]} 15. Qc6 {[%emt 0:00:33]} Ra7 {[%emt 0:07:27]} 16. Qxd5 {[%emt 0:00:42]} Rc7 {[%emt 0:01:04]} 17. Bc4 {[%emt 0:18:51]} Bb7 {[%emt 0:03:42]} 18. Qf5 {[%emt 0:00:18]} Be7 {[%emt 0:01:41]} 19. h4 {[%emt 0:05:26]} Nd6 {[%emt 0:01:17]} 20. Qa5 {[%emt 0:02:30]} Nb8 {[%emt 0:03:08]} 21. Nc5 {[%emt 0:05:27]} Nxc4 {[%emt 0:11:14]} 22. Nxc4 {[%emt 0:03:12]} Bxc5 {[%emt 0:05:00]} 23. dxc5 {[%emt 0:00:05]} Nc6 {[%emt 0:01:55]} 24. Qb6 {[%emt 0:07:09]} Qe7 {[%emt 0:00:18]} 25. Rd1 {[%emt 0:00:24]} Ba8 {[%emt 0:05:46]} 26. Bf6 {[%emt 0:02:09]} gxf6 {[%emt 0:02:37]} 27. gxf6 {[%emt 0:00:22]} Qd7 {[%emt 0:03:21]} 28. Rxd7 {[%emt 0:00:43]} Rxd7 {[%emt 0:00:07]} 29. Nd6 {[%emt 0:03:57]} Ne5 {[%emt 0:00:32]} 30. Ke2 {[%emt 0:01:51]} Rfd8 {[%emt 0:05:12]} 31. Rg1+ {[%emt 0:00:14]} Kh8 {[%emt 0:01:09]} 32. Rg5 {[%emt 0:00:16]} Nc6 {[%emt 0:01:07]} 33. Rg7 {[%emt 0:03:42]} Ne5 {[%emt 0:00:18]} 34. Nxf7+ {[%emt 0:03:18]} Nxf7 {[%emt 0:00:18]} 35. Rxf7 {[%emt 0:00:04]} 1-0

[Event "VII Famalicao Open 2019"]
[Site "Famalicao"]
[Date "2019.08.03"]
[Round "9.6"]
[White "Pintor, Simao"]
[Black "Forgas Moreno, Yaniela"]
[Result "1-0"]
[ECO "B90"]
[WhiteElo "2082"]
[BlackElo "2272"]
[Annotator "NA"]
[PlyCount "125"]
[EventDate "2019.07.28"]
[EventType "swiss"]
[EventCountry "POR"]
[SourceTitle "playchess.com"]
[Source "ChessBase"]
[SourceQuality "1"]
[TimeControl "5400+30"]

1. e4 {[%emt 0:17:54]} c5 {[%emt 0:00:00]} 2. Nf3 {[%emt 0:00:12]} d6 {[%emt 0:00:11]} 3. d4 {[%emt 0:00:07]} cxd4 {[%emt 0:00:04]} 4. Nxd4 {[%emt 0:00:04]} Nf6 {[%emt 0:00:05]} 5. Nc3 {[%emt 0:00:04]} a6 {[%emt 0:00:03]} 6. Be3 {[%emt 0:00:05]} e5 {[%emt 0:00:09]} 7. Nf3 {[%emt 0:00:06]} Be7 {[%emt 0:01:30]} 8. Bc4 {[%emt 0:01:48]} Be6 {[%emt 0:00:04]} 9. Bxe6 {[%emt 0:00:34]} fxe6 {[%emt 0:00:07]} 10. Ng5 {[%emt 0:00:04]} Qd7 {[%emt 0:00:20]} 11. Qf3 {[%emt 0:00:14]} Nc6 {[%emt 0:01:25]} 12. O-O-O {[%emt 0:06:04]} O-O {[%emt 0:03:03]} 13. Qh3 {[%emt 0:00:59]} Nd8 {[%emt 0:00:34]} 14. Bb6 {[%emt 0:02:06]} Re8 {[%emt 0:00:11]} 15. f4 {[%emt 0:05:31]} Qc6 {[%emt 0:05:58]} 16. Bxd8 {[%emt 0:02:24]} Bxd8 {[%emt 0:00:07]} 17. Nxe6 {[%emt 0:00:49]} Ba5 {[%emt 0:02:48]} 18. Nd5 {[%emt 0:06:28]} Nxe4 {[%emt 0:17:56]} 19. Qg4 {[%emt 0:04:40]} Qd7 {[%emt 0:00:49]} 20. f5 {[%emt 0:00:05]} Nf2 {[%emt 0:00:55]} 21. Nf6+ {[%emt 0:26:11]} Kh8 {[%emt 0:00:05]} 22. Nxd7 {[%emt 0:02:51]} Nxg4 {[%emt 0:00:05]} 23. Rxd6 {[%emt 0:00:16]} Ne3 {[%emt 0:04:05]} 24. f6 {[%emt 0:00:57]} gxf6 {[%emt 0:00:15]} 25. Nxf6 {[%emt 0:00:07]} Re7 {[%emt 0:00:14]} 26. c3 {[%emt 0:04:29]} Nc4 {[%emt 0:12:13]} 27. Rd7 {[%emt 0:00:03]} Rxd7 {[%emt 0:00:04]} 28. Nxd7 {[%emt 0:00:03]} Re8 29. Nec5 {[%emt 0:03:17]} Bd8 {[%emt 0:07:13]} 30. Ne4 {[%emt 0:02:52]} Re7 {[%emt 0:01:34]} 31. Ndf6 {[%emt 0:00:31]} Ne3 {[%emt 0:02:03]} 32. g4 {[%emt 0:01:09]} Rg7 {[%emt 0:06:45]} 33. g5 {[%emt 0:00:20]} h6 {[%emt 0:01:03]} 34. h4 {[%emt 0:02:23]} Bb6 {[%emt 0:03:38]} 35. gxh6 {[%emt 0:00:54]} Rg6 {[%emt 0:01:10]} 36. Rh3 {[%emt 0:01:52]} Nf5 {[%emt 0:09:05]} 37. h5 {[%emt 0:02:29]} Rg2 {[%emt 0:03:18]} 38. Rd3 {[%emt 0:01:06]} Nxh6 {[%emt 0:00:39]} 39. Rd7 {[%emt 0:01:04]} Rg7 {[%emt 0:00:24]} 40. Rd6 {[%emt 0:02:24]} Be3+ {[%emt 0:06:41]} 41. Kc2 {[%emt 0:00:08]} Rg2+ {[%emt 0:04:48]} 42. Kd3 {[%emt 0:01:03]} Bf4 {[%emt 0:02:46]} 43. Rd7 {[%emt 0:00:11]} Rg7 {[%emt 0:00:06]} 44. Rd8+ {[%emt 0:00:36]} Ng8 {[%emt 0:00:06]} 45. Nd6 {[%emt 0:00:45]} Rg3+ {[%emt 0:02:25]} 46. Ke4 {[%emt 0:00:07]} Kg7 {[%emt 0:00:53]} 47. Nf5+ {[%emt 0:01:10]} Kf7 {[%emt 0:00:33]} 48. Nxg3 {[%emt 0:01:09]} Nxf6+ {[%emt 0:00:05]} 49. Kf3 {[%emt 0:00:03]} Bxg3 {[%emt 0:00:21]} 50. Kxg3 {[%emt 0:00:08]} Nxh5+ {[%emt 0:00:10]} 51. Kg4 {[%emt 0:00:19]} Nf4 {[%emt 0:01:31]} 52. Kf5 {[%emt 0:00:12]} Ke7 {[%emt 0:00:19]} 53. Rb8 {[%emt 0:00:12]} Nd3 {[%emt 0:00:47]} 54. Rxb7+ {[%emt 0:00:12]} Kd6 {[%emt 0:00:04]} 55. b4 {[%emt 0:00:40]} Kd5 {[%emt 0:00:35]} 56. Rd7+ {[%emt 0:01:41]} Kc4 {[%emt 0:00:04]} 57. Ke4 {[%emt 0:00:05]} Nf2+ {[%emt 0:00:14]} 58. Ke3 {[%emt 0:01:41]} Ng4+ {[%emt 0:00:05]} 59. Kf3 {[%emt 0:00:08]} Nf6 {[%emt 0:00:08]} 60. Rd6 {[%emt 0:00:22]} e4+ {[%emt 0:00:19]} 61. Ke2 {[%emt 0:00:53]} Ng4 {[%emt 0:00:19]} 62. Rxa6 {[%emt 0:00:48]} Kxc3 {[%emt 0:00:09]} 63. b5 {[%emt 0:00:04]} 1-0